[Event "30e Open International de Saint Affrique"]
[Site "Saint Affrique, France"]
[Date "2024.07.21"]
[Round "2.3"]
[White "Flear, Glenn"]
[Black "Mania, Clement"]
[Result "1-0"]
[TimeControl "1h30/40 + 30min + sec/mv"]
[WhiteTitle "GM"]
[WhiteElo "2390"]
[BlackElo "1911"]

1. d4 {[%clk 01:30:56]} {[%emt 00:00:03]} d6 {[%clk 01:29:39]} {[%emt
00:01:17]} 2. c4 {[%clk 01:31:11]} {[%emt 00:00:20]} f5 {[%clk 01:29:23]}
{[%emt 00:00:43]} 3. Nc3 {[%clk 01:26:33]} {[%emt 00:05:11]} Nf6 {[%clk
01:26:30]} {[%emt 00:03:22]} 4. Bg5 {[%clk 01:25:07]} {[%emt 00:01:56]} e6
{[%clk 01:18:55]} {[%emt 00:08:03]} 5. Qc2 {[%clk 01:21:29]} {[%emt 00:04:10]}
Nc6 {[%clk 01:16:23]} {[%emt 00:03:00]} 6. Nf3 {[%clk 01:18:01]} {[%emt
00:04:00]} h6 {[%clk 01:13:43]} {[%emt 00:03:06]} 7. Bxf6 {[%clk 01:13:34]}
{[%emt 00:05:02]} Qxf6 {[%clk 01:13:30]} {[%emt 00:00:40]} 8. d5 {[%clk
01:12:10]} {[%emt 00:01:57]} Nd4 {[%clk 01:04:20]} {[%emt 00:09:39]} 9. Nxd4
{[%clk 01:06:24]} {[%emt 00:06:16]} Qxd4 {[%clk 01:01:03]} {[%emt 00:03:45]} 10.
e3 {[%clk 01:05:51]} {[%emt 00:01:04]} Qe5 {[%clk 00:56:42]} {[%emt 00:04:47]}
11. Nb5 {[%clk 01:00:55]} {[%emt 00:05:30]} Kd8 {[%clk 00:55:37]} {[%emt
00:01:32]} 12. O-O-O {[%clk 00:56:22]} {[%emt 00:05:06]} Bd7 {[%clk 00:49:33]}
{[%emt 00:06:33]} 13. Nd4 {[%clk 00:51:38]} {[%emt 00:05:15]} exd5 {[%clk
00:40:29]} {[%emt 00:09:33]} 14. cxd5 {[%clk 00:45:26]} {[%emt 00:06:43]} Be7
{[%clk 00:34:54]} {[%emt 00:06:01]} 15. Bb5 {[%clk 00:36:06]} {[%emt 00:09:53]}
g6 {[%clk 00:32:15]} {[%emt 00:03:10]} 16. Bxd7 {[%clk 00:28:29]} {[%emt
00:08:07]} Kxd7 {[%clk 00:29:58]} {[%emt 00:02:36]} 17. Qb3 {[%clk 00:28:11]}
{[%emt 00:00:58]} Bf6 {[%clk 00:19:59]} {[%emt 00:10:22]} 18. Qxb7 {[%clk
00:24:07]} {[%emt 00:04:42]} Rhb8 {[%clk 00:19:02]} {[%emt 00:01:26]} 19. Qc6+
{[%clk 00:23:55]} {[%emt 00:00:41]} Ke7 {[%clk 00:18:38]} {[%emt 00:00:56]} 20.
Qxa8 {[%clk 00:20:14]} {[%emt 00:04:11]} Rxa8 {[%clk 00:08:54]} {[%emt
00:10:12]} 21. Nc6+ {[%clk 00:20:16]} {[%emt 00:00:28]} Kd7 {[%clk 00:09:17]}
{[%emt 00:00:08]} 22. Nxe5+ {[%clk 00:20:40]} {[%emt 00:00:06]} dxe5 {[%clk
00:09:24]} {[%emt 00:00:24]} 23. e4 {[%clk 00:16:48]} {[%emt 00:04:22]} Rb8
{[%clk 00:08:33]} {[%emt 00:01:21]} 24. f3 {[%clk 00:16:38]} {[%emt 00:00:38]}
Bg5+ {[%clk 00:08:49]} {[%emt 00:00:15]} 25. Kc2 {[%clk 00:15:29]} {[%emt
00:01:39]} Be3 {[%clk 00:08:03]} {[%emt 00:01:16]} 26. Rd3 {[%clk 00:15:16]}
{[%emt 00:00:42]} Bb6 {[%emt 00:03:00]} 27. Re1 {[%clk 00:14:11]} f4 {[%clk
00:03:25]} {[%emt 00:04:14]} 28. Re2 {[%clk 00:13:44]} {[%emt 00:00:57]} g5
{[%clk 00:03:18]} {[%emt 00:00:37]} 29. Kd1 {[%clk 00:11:11]} {[%emt 00:03:02]}
h5 {[%clk 00:03:27]} {[%emt 00:00:22]} 30. Rc2 {[%clk 00:10:45]} {[%emt
00:00:56]} g4 {[%clk 00:03:26]} {[%emt 00:00:31]} 31. b3 {[%clk 00:10:12]}
{[%emt 00:01:03]} Rg8 {[%clk 00:02:53]} {[%emt 00:01:03]} 32. Ke2 {[%clk
00:08:33]} {[%emt 00:02:08]} h4 {[%clk 00:00:35]} {[%emt 00:02:49]} 33. fxg4
{[%clk 00:08:45]} {[%emt 00:00:18]} Rxg4 {[%clk 00:01:02]} {[%emt 00:00:02]} 34.
Kf3 {[%clk 00:08:58]} {[%emt 00:00:17]} Rg8 {[%clk 00:01:13]} {[%emt 00:00:20]}
35. Rdc3 {[%clk 00:07:22]} {[%emt 00:02:06]} h3 {[%clk 00:00:53]} {[%emt
00:00:50]} 36. gxh3 {[%clk 00:06:30]} {[%emt 00:01:22]} Rg1 {[%clk 00:01:21]}
{[%emt 00:00:02]} 37. h4 {[%clk 00:05:36]} {[%emt 00:01:22]} Rg7 {[%clk
00:01:08]} {[%emt 00:00:45]} 38. Rg2 {[%clk 00:05:43]} {[%emt 00:00:22]} Rh7
{[%clk 00:01:26]} {[%emt 00:00:13]} 39. Rg4 {[%clk 00:06:03]} {[%emt 00:00:10]}
Ke7 {[%clk 00:01:42]} {[%emt 00:00:13]} 40. Rc6 {[%clk 00:06:09]} {[%emt
00:00:25]} Kf7 {[%clk 00:02:03]} {[%emt 00:00:10]} 41. b4 {[%clk 00:04:38]}
{[%emt 00:02:00]} Kf8 {[%clk 00:18:31]} {[%emt 00:14:02]} 42. Rf6+ {[%clk
00:34:05]} {[%emt 00:01:02]} 1-0

[Event "30e Open International de Saint Affrique"]
[Site "Saint Affrique, France"]
[Date "2024.07.21"]
[Round "2.4"]
[White "Long, Raphael"]
[Black "Ouakhir, Mehdi"]
[Result "0-1"]
[TimeControl "1h30/40 + 30min + sec/mv"]
[BlackTitle "FM"]
[WhiteElo "1911"]
[BlackElo "2210"]

1. Nf3 {[%clk 01:30:58]} {[%emt 00:00:01]} d5 {[%clk 01:30:50]} {[%emt
00:00:11]} 2. h4 {[%clk 01:31:24]} {[%emt 00:00:05]} Nf6 {[%clk 01:30:13]}
{[%emt 00:01:06]} 3. d4 {[%clk 01:31:48]} {[%emt 00:00:06]} Bf5 {[%clk
01:29:10]} {[%emt 00:01:34]} 4. Nc3 {[%clk 01:29:09]} {[%emt 00:03:09]} e6
{[%clk 01:24:33]} {[%emt 00:05:07]} 5. Ne5 {[%clk 01:29:07]} {[%emt 00:00:31]}
Nbd7 {[%clk 01:01:22]} {[%emt 00:23:41]} 6. Bg5 {[%clk 01:20:48]} {[%emt
00:08:49]} h6 {[%clk 00:51:24]} {[%emt 00:10:29]} 7. Bxf6 {[%clk 01:15:25]}
{[%emt 00:05:52]} Nxf6 {[%clk 00:46:10]} {[%emt 00:05:44]} 8. e4 {[%clk
00:54:51]} {[%emt 00:21:04]} Bxe4 {[%clk 00:34:25]} {[%emt 00:12:16]} 9. f3
{[%clk 00:53:21]} {[%emt 00:01:59]} Bh7 {[%clk 00:29:54]} {[%emt 00:05:01]} 10.
Bb5+ {[%clk 00:47:31]} {[%emt 00:06:20]} c6 {[%clk 00:29:15]} {[%emt 00:01:10]}
11. Nxc6 {[%clk 00:47:39]} {[%emt 00:00:22]} bxc6 {[%clk 00:29:32]} {[%emt
00:00:13]} 12. Bxc6+ {[%clk 00:48:06]} {[%emt 00:00:03]} Nd7 {[%clk 00:29:07]}
{[%emt 00:00:55]} 13. Bxa8 {[%clk 00:46:56]} {[%emt 00:01:41]} Qxa8 {[%clk
00:29:34]} {[%emt 00:00:02]} 14. Qd2 {[%clk 00:47:05]} {[%emt 00:00:19]} Nb6
{[%clk 00:27:37]} {[%emt 00:02:28]} 15. b3 {[%clk 00:34:41]} {[%emt 00:12:54]}
Qc6 {[%clk 00:26:03]} {[%emt 00:02:04]} 16. a3 {[%clk 00:34:42]} {[%emt
00:00:29]} Be7 {[%clk 00:25:17]} {[%emt 00:01:16]} 17. Rc1 {[%clk 00:34:25]}
{[%emt 00:00:47]} Bxa3 {[%emt 00:01:12]} 0-1

[Event "30e Open International de Saint Affrique"]
[Site "Saint Affrique, France"]
[Date "2024.07.21"]
[Round "2.5"]
[White "Buscara, Sevan"]
[Black "Perrin, Alexis"]
[Result "1-0"]
[TimeControl "1h30/40 + 30min + sec/mv"]
[WhiteTitle "IM"]
[WhiteElo "2187"]
[BlackElo "1909"]

1. d4 {[%clk 01:22:55]} {[%emt 00:08:04]} Nf6 {[%clk 01:30:54]} {[%emt
00:00:07]} 2. c4 {[%clk 01:23:18]} {[%emt 00:00:07]} g6 {[%clk 01:31:18]}
{[%emt 00:00:06]} 3. Nc3 {[%clk 01:23:27]} {[%emt 00:00:20]} Bg7 {[%clk
01:31:39]} {[%emt 00:00:09]} 4. e4 {[%clk 01:23:36]} {[%emt 00:00:21]} d6
{[%clk 01:31:41]} {[%emt 00:00:29]} 5. Bd3 {[%clk 01:23:36]} {[%emt 00:00:29]}
O-O {[%clk 01:31:50]} {[%emt 00:00:21]} 6. Nge2 {[%clk 01:23:57]} {[%emt
00:00:08]} e5 {[%clk 01:25:02]} {[%emt 00:07:19]} 7. d5 {[%clk 01:21:16]}
{[%emt 00:03:10]} Na6 {[%clk 01:24:38]} {[%emt 00:00:54]} 8. O-O {[%clk
01:20:23]} {[%emt 00:01:23]} c6 {[%clk 01:22:46]} {[%emt 00:02:22]} 9. a3
{[%clk 01:16:46]} {[%emt 00:04:06]} Bd7 {[%clk 01:16:41]} {[%emt 00:06:36]} 10.
b4 {[%clk 01:13:19]} {[%emt 00:03:57]} Nc7 {[%clk 00:58:30]} {[%emt 00:18:40]}
11. a4 {[%clk 01:06:13]} {[%emt 00:07:37]} a5 {[%clk 00:51:40]} {[%emt
00:07:20]} 12. bxa5 {[%clk 01:03:47]} {[%emt 00:02:55]} Rxa5 {[%clk 00:52:04]}
{[%emt 00:00:06]} 13. Bd2 {[%clk 01:02:28]} {[%emt 00:01:49]} Ra8 {[%clk
00:51:19]} {[%emt 00:01:15]} 14. Qb1 {[%clk 00:59:25]} {[%emt 00:03:32]} Na6
{[%clk 00:36:07]} {[%emt 00:15:43]} 15. Qxb7 {[%clk 00:54:57]} {[%emt
00:04:58]} Nc5 {[%clk 00:36:28]} {[%emt 00:00:09]} 16. Qb1 {[%clk 00:55:17]}
{[%emt 00:00:10]} cxd5 {[%clk 00:36:49]} {[%emt 00:00:08]} 17. cxd5 {[%clk
00:55:36]} {[%emt 00:00:11]} Bxa4 {[%clk 00:36:02]} {[%emt 00:01:18]} 18. Nxa4
{[%clk 00:54:54]} {[%emt 00:01:12]} Rxa4 {[%clk 00:35:59]} {[%emt 00:00:32]} 19.
Rxa4 {[%clk 00:54:39]} {[%emt 00:00:45]} Nxa4 {[%clk 00:36:24]} {[%emt
00:00:05]} 20. Bb5 {[%clk 00:48:34]} {[%emt 00:06:35]} Nc5 {[%clk 00:35:06]}
{[%emt 00:01:49]} 21. Nc3 {[%clk 00:45:54]} {[%emt 00:03:10]} Nfd7 {[%clk
00:25:22]} {[%emt 00:10:14]} 22. Be3 {[%clk 00:41:46]} {[%emt 00:04:37]} f5
{[%clk 00:20:24]} {[%emt 00:05:29]} 23. f3 {[%clk 00:38:04]} {[%emt 00:04:12]}
fxe4 {[%clk 00:17:05]} {[%emt 00:03:49]} 24. Bxd7 {[%clk 00:31:40]} {[%emt
00:06:53]} Qxd7 {[%clk 00:16:55]} {[%emt 00:00:40]} 25. Bxc5 {[%clk 00:30:56]}
{[%emt 00:01:14]} dxc5 {[%clk 00:17:12]} {[%emt 00:00:14]} 26. Nxe4 {[%clk
00:30:55]} {[%emt 00:00:31]} Qxd5 {[%clk 00:15:22]} {[%emt 00:02:20]} 27. Rd1
{[%clk 00:30:03]} {[%emt 00:01:22]} Qc6 {[%clk 00:14:51]} {[%emt 00:01:01]} 28.
Rc1 {[%clk 00:29:04]} {[%emt 00:01:28]} Bh6 {[%clk 00:11:11]} {[%emt 00:04:11]}
29. Qb3+ {[%clk 00:29:22]} {[%emt 00:00:12]} Kh8 {[%clk 00:06:54]} {[%emt
00:04:48]} 30. Rxc5 {[%clk 00:29:20]} {[%emt 00:00:31]} Qa6 {[%clk 00:06:59]}
{[%emt 00:00:26]} 31. Rd5 {[%clk 00:23:30]} {[%emt 00:06:20]} Qa7+ {[%clk
00:03:48]} {[%emt 00:03:42]} 32. Kh1 {[%clk 00:22:36]} {[%emt 00:01:22]} Rb8
{[%clk 00:03:38]} {[%emt 00:00:40]} 33. Qd1 {[%clk 00:22:45]} {[%emt 00:00:20]}
Qc7 {[%clk 00:03:33]} {[%emt 00:00:36]} 34. g3 {[%clk 00:22:37]} {[%emt
00:00:38]} Rf8 {[%clk 00:01:25]} {[%emt 00:02:39]} 35. Rd7 {[%clk 00:22:05]}
{[%emt 00:01:01]} Qc1 {[%clk 00:01:45]} {[%emt 00:00:11]} 36. Qxc1 {[%clk
00:22:08]} {[%emt 00:00:27]} Bxc1 {[%clk 00:02:10]} {[%emt 00:00:05]} 37. Kg2
{[%clk 00:22:25]} {[%emt 00:00:12]} h6 {[%clk 00:01:27]} {[%emt 00:01:14]} 38.
Re7 {[%clk 00:22:03]} {[%emt 00:00:52]} Bb2 {[%clk 00:01:42]} {[%emt 00:00:15]}
39. Nc5 {[%clk 00:21:26]} {[%emt 00:01:05]} Kg8 {[%clk 00:01:38]} {[%emt
00:00:36]} 40. Nd3 {[%clk 00:21:11]} {[%emt 00:00:45]} Rf7 {[%clk 00:00:58]}
{[%emt 00:01:10]} 1-0

[ePGN "0.1;DGT LiveChess/2.2.6"]

[Event "30e Open International de Saint Affrique"]
[Site "Saint Affrique, France"]
[Date "2024.07.22"]
[Round "3.1"]
[White "Maccagnan, Tomas"]
[Black "Degraeve, Jean-Marc"]
[Result "1/2-1/2"]
[TimeControl "1h30/40 + 30min + sec/mv"]
[BlackTitle "GM"]
[WhiteElo "2020"]
[BlackElo "2480"]

1. e4 {[%clk 01:30:56]} {[%emt 00:00:02]} c5 {[%clk 01:21:51]} {[%emt
00:09:10]} 2. Nf3 {[%clk 01:29:59]} {[%emt 00:01:27]} Nc6 {[%clk 01:22:16]}
{[%emt 00:00:05]} 3. d4 {[%clk 01:29:46]} {[%emt 00:00:43]} cxd4 {[%clk
01:22:39]} {[%emt 00:00:07]} 4. Nxd4 {[%clk 01:30:10]} {[%emt 00:00:05]} e5
{[%clk 01:23:02]} {[%emt 00:00:07]} 5. Nb5 {[%clk 01:30:36]} {[%emt 00:00:05]}
d6 {[%clk 01:23:26]} {[%emt 00:00:06]} 6. g3 {[%clk 01:30:44]} {[%emt
00:00:22]} Be7 {[%clk 01:21:55]} {[%emt 00:02:01]} 7. Bg2 {[%clk 01:30:11]}
{[%emt 00:01:04]} Be6 {[%clk 01:21:59]} {[%emt 00:00:26]} 8. N5c3 {[%clk
01:28:31]} {[%emt 00:02:10]} Bg5 {[%clk 01:21:40]} {[%emt 00:00:48]} 9. Bxg5
{[%clk 01:23:17]} {[%emt 00:05:44]} Qxg5 {[%clk 01:18:57]} {[%emt 00:03:13]} 10.
Nd5 {[%clk 01:23:36]} {[%emt 00:00:10]} Qd8 {[%clk 01:18:18]} {[%emt 00:01:10]}
11. Nbc3 {[%clk 01:20:40]} {[%emt 00:03:26]} Nge7 {[%clk 01:18:19]} {[%emt
00:00:29]} 12. O-O {[%clk 01:19:23]} {[%emt 00:01:48]} O-O {[%clk 01:18:38]}
{[%emt 00:00:10]} 13. Nb5 {[%clk 01:06:01]} {[%emt 00:13:52]} Bxd5 {[%clk
01:07:25]} {[%emt 00:11:43]} 14. exd5 {[%clk 01:06:08]} {[%emt 00:00:23]} Nb8
{[%clk 01:07:51]} {[%emt 00:00:03]} 15. c4 {[%clk 01:05:02]} {[%emt 00:01:36]}
Qb6 {[%clk 01:07:28]} {[%emt 00:00:54]} 16. a4 {[%clk 00:54:56]} {[%emt
00:32:11]} a6 {[%clk 01:02:18]} 17. a5 {[%clk 00:54:57]} Qc5 {[%clk 01:02:26]}
18. b4 {[%clk 00:51:07]} Qxb4 {[%clk 01:01:57]} 19. Rb1 {[%clk 00:46:12]} Qc5
{[%clk 00:59:05]} 20. Nc3 {[%clk 00:43:19]} {[%emt 00:02:25]} Nd7 {[%clk
00:30:59]} {[%emt 00:28:36]} 21. Rxb7 {[%clk 00:40:16]} {[%emt 00:03:34]} Qc8
{[%clk 00:31:11]} {[%emt 00:00:17]} 22. Qb1 {[%clk 00:39:07]} {[%emt 00:01:38]}
Rb8 {[%clk 00:09:26]} {[%emt 00:22:16]} 23. Rxb8 {[%clk 00:38:14]} {[%emt
00:01:24]} Qxb8 {[%clk 00:09:45]} {[%emt 00:00:11]} 24. Ne4 {[%clk 00:31:36]}
{[%emt 00:07:07]} f5 {[%clk 00:06:43]} {[%emt 00:03:32]} 25. Qxb8 {[%clk
00:30:51]} {[%emt 00:01:15]} Rxb8 {[%clk 00:07:11]} {[%emt 00:00:01]} 26. Nxd6
{[%clk 00:31:08]} {[%emt 00:00:13]} g6 {[%clk 00:06:29]} {[%emt 00:01:12]} 27.
g4 {[%clk 00:26:32]} {[%emt 00:05:07]} Kg7 {[%clk 00:06:49]} {[%emt 00:00:10]}
28. gxf5 {[%clk 00:25:48]} {[%emt 00:01:14]} gxf5 {[%clk 00:07:17]} {[%emt
00:00:01]} 29. Bh3 {[%clk 00:25:58]} {[%emt 00:00:20]} Kg6 {[%clk 00:05:53]}
{[%emt 00:01:54]} 30. Ne4 {[%clk 00:23:48]} {[%emt 00:02:40]} Rb4 {[%clk
00:05:05]} {[%emt 00:01:18]} 31. d6 {[%clk 00:21:17]} {[%emt 00:03:01]} Nc6
{[%clk 00:05:15]} {[%emt 00:00:20]} 32. Ng3 {[%clk 00:19:35]} {[%emt 00:02:12]}
Nd4 {[%clk 00:05:15]} {[%emt 00:00:30]} 33. Rd1 {[%clk 00:19:17]} {[%emt
00:00:48]} Rxc4 {[%clk 00:04:25]} {[%emt 00:01:20]} 34. Rxd4 {[%clk 00:19:23]}
{[%emt 00:00:24]} exd4 {[%clk 00:04:08]} {[%emt 00:00:47]} 35. Bxf5+ {[%clk
00:19:32]} {[%emt 00:00:21]} Kf6 {[%clk 00:04:20]} {[%emt 00:00:18]} 36. Bxd7
{[%clk 00:19:52]} {[%emt 00:00:10]} d3 {[%clk 00:04:47]} {[%emt 00:00:04]} 37.
Nf1 {[%clk 00:16:45]} {[%emt 00:03:37]} Rd4 {[%clk 00:03:36]} {[%emt 00:01:40]}
38. Nd2 {[%clk 00:16:44]} {[%emt 00:00:32]} Kg7 {[%clk 00:02:23]} {[%emt
00:01:43]} 39. Be6 {[%clk 00:15:44]} {[%emt 00:01:30]} Rxd6 {[%clk 00:02:45]}
{[%emt 00:00:07]} 40. Bc4 {[%clk 00:16:05]} {[%emt 00:00:09]} Rc6 {[%clk
00:00:47]} {[%emt 00:02:27]} 41. Kf1 {[%clk 00:12:22]} {[%emt 00:04:14]} Rc5
{[%clk 00:24:56]} {[%emt 00:06:21]} 42. Bxa6 {[%clk 00:38:45]} {[%emt
00:04:06]} Rc1+ {[%clk 00:22:55]} {[%emt 00:02:32]} 43. Kg2 {[%clk 00:39:09]}
{[%emt 00:00:06]} Rd1 {[%clk 00:22:11]} {[%emt 00:01:13]} 44. Nf3 {[%clk
00:30:22]} {[%emt 00:09:18]} d2 {[%clk 00:22:22]} {[%emt 00:00:19]} 45. Nxd2
{[%clk 00:30:44]} {[%emt 00:00:08]} Rxd2 {[%clk 00:22:44]} {[%emt 00:00:07]} 46.
Bb7 {[%clk 00:31:08]} {[%emt 00:00:06]} Ra2 {[%clk 00:23:03]} {[%emt 00:00:12]}
47. a6 {[%clk 00:31:31]} {[%emt 00:00:06]} Kf6 {[%emt 00:04:54]} 1/2-1/2

[Event "30e Open International de Saint Affrique"]
[Site "Saint Affrique, France"]
[Date "2024.07.22"]
[Round "3.2"]
[White "Castets, Philip"]
[Black "Flear, Glenn"]
[Result "0-1"]
[TimeControl "1h30/40 + 30min + sec/mv"]
[BlackTitle "GM"]
[WhiteElo "1994"]
[BlackElo "2390"]

1. d4 {[%clk 01:30:56]} {[%emt 00:00:03]} d5 {[%clk 01:30:47]} {[%emt
00:00:13]} 2. c4 {[%clk 01:31:12]} {[%emt 00:00:15]} e6 {[%clk 01:31:07]}
{[%emt 00:00:10]} 3. Nc3 {[%clk 01:31:30]} {[%emt 00:00:12]} c6 {[%clk
01:31:19]} {[%emt 00:00:18]} 4. Nf3 {[%clk 01:31:20]} {[%emt 00:00:39]} dxc4
{[%clk 01:31:17]} {[%emt 00:00:32]} 5. a4 {[%clk 01:29:47]} {[%emt 00:02:03]}
Bb4 {[%clk 01:30:56]} {[%emt 00:00:51]} 6. e3 {[%clk 01:28:52]} {[%emt
00:01:26]} b5 {[%clk 01:31:14]} {[%emt 00:00:12]} 7. Be2 {[%clk 01:26:07]}
{[%emt 00:03:14]} Bb7 {[%clk 01:31:09]} {[%emt 00:00:35]} 8. O-O {[%clk
01:26:04]} {[%emt 00:00:33]} a6 {[%clk 01:30:51]} {[%emt 00:00:48]} 9. Qc2
{[%clk 01:16:56]} {[%emt 00:09:37]} Nf6 {[%clk 01:30:29]} {[%emt 00:00:53]} 10.
Rd1 {[%clk 01:15:11]} {[%emt 00:02:15]} Nbd7 {[%clk 01:30:23]} {[%emt
00:00:36]} 11. e4 {[%clk 01:11:33]} {[%emt 00:04:08]} h6 {[%clk 01:29:34]}
{[%emt 00:01:18]} 12. e5 {[%clk 01:00:56]} {[%emt 00:11:08]} Nd5 {[%clk
01:29:27]} {[%emt 00:00:37]} 13. Ne4 {[%clk 00:58:42]} {[%emt 00:02:44]} O-O
{[%clk 01:29:13]} {[%emt 00:00:44]} 14. Neg5 {[%clk 00:47:20]} {[%emt
00:11:53]} hxg5 {[%clk 01:29:01]} {[%emt 00:00:41]} 15. Nxg5 {[%clk 00:47:48]}
{[%emt 00:00:02]} g6 {[%clk 01:28:48]} {[%emt 00:00:42]} 16. Nxe6 {[%clk
00:47:14]} {[%emt 00:01:05]} Qe7 {[%clk 01:27:59]} {[%emt 00:01:18]} 17. Nxf8
{[%clk 00:46:40]} {[%emt 00:01:05]} Nxf8 {[%clk 01:27:35]} {[%emt 00:00:54]} 18.
f4 {[%clk 00:31:37]} {[%emt 00:32:13]} Ne6 {[%clk 01:26:42]} 19. f5 {[%clk
00:31:28]} Nxd4 {[%clk 01:24:42]} 20. Rxd4 {[%clk 00:26:38]} Bc5 {[%clk
01:24:45]} 21. Qe4 {[%clk 00:20:02]} {[%emt 00:00:46]} gxf5 {[%emt 00:01:11]}
0-1